bitfinex/quotes_SOLUSD_20220226
["timestamp","ask_amount","ask_price","bid_price","bid_amount"]
[1645877644959,23.1827,90.841,90.761,110.1]
[1645877645160,21.78849422,90.859,90.771,110.1]
[1645877645362,30.62187724,90.858,90.773,110.1]
[1645877645662,1.40711682,90.857,90.773,110.1]
[1645877645864,6.19321266,90.856,90.77,15.91]
[1645877646161,1.41748684,90.855,90.762,10.85133221]
[1645877646361,51.48199023,90.853,90.762,10.85133221]
[1645877646561,5.90375715,90.852,90.762,10.85133221]
[1645877646961,16.5267,90.85,90.762,10.85133221]
[1645877647159,6.07810983,90.849,90.762,10.85133221]
[1645877647360,1.86064373,90.848,90.762,10.85133221]
[1645877647560,1.78949648,90.846,90.762,10.85133221]
[1645877647761,4.405,90.845,90.762,10.85133221]
[1645877648160,21.45455371,90.844,90.762,10.85133221]
[1645877648360,1.35220544,90.843,90.762,10.85133221]
[1645877648566,53.23959239,90.831,90.763,110.1]
[1645877648766,25.75918918,90.847,90.763,133.613]
[1645877649773,49.22723823,90.846,90.763,133.613]
[1645877650170,5.7632916,90.845,90.763,23.513]
[1645877650368,47.21493263,90.845,90.762,10.85133221]
[1645877650570,21.25363849,90.844,90.762,10.85133221]
[1645877650871,6.06776117,90.843,90.764,110.1]
[1645877651072,0.25,90.842,90.763,23.8925]
[1645877651369,4.405,90.841,90.763,23.8925]
[1645877651570,4.405,90.841,90.764,110.1]
[1645877651768,16.5284,90.84,90.763,23.8925]
[1645877651969,113.0,90.832,90.763,23.8925]
[1645877652172,1.8045332,90.831,90.763,23.8925]
[1645877653170,1.67979496,90.845,90.771,110.1]
[1645877653370,4.405,90.862,90.78,15.91]
[1645877653371,1.76626722,90.861,90.78,15.91]
[1645877653573,1.76626722,90.861,90.781,110.1]
[1645877653870,1.76626722,90.861,90.783,110.1]
[1645877654069,1.76626722,90.861,90.784,4.404]
[1645877654270,84.05742243,90.847,90.786,110.1]
[1645877654471,24.2092,90.847,90.786,110.1]
[1645877654671,6.14108633,90.866,90.791,110.1]
[1645877654873,22.8963,90.865,90.791,110.1]
[1645877655372,52.42611564,90.864,90.793,110.1]
[1645877655572,52.42611564,90.864,90.794,4.402]
[1645877656174,52.42611564,90.864,90.801,10.85133221]
[1645877656377,1.5250005,90.863,90.801,10.85133221]
[1645877657176,16.5246,90.86,90.801,10.85133221]
[1645877657376,1.75903696,90.859,90.801,10.85133221]
[1645877657574,1.75903696,90.859,90.801,10.35133221]
[1645877659181,0.25,90.858,90.801,10.35133221]
[1645877661688,0.25,90.858,90.771,4.402]
[1645877661888,2.75845004,90.857,90.771,4.402]
[1645877662090,0.25,90.858,90.77,15.91]
[1645877662488,0.25,90.858,90.771,4.404]
[1645877662688,0.25,90.858,90.773,110.1]
[1645877662890,0.25,90.858,90.774,4.404]
[1645877663088,0.25,90.858,90.775,23.6295]
[1645877663289,0.25,90.858,90.776,4.404]
[1645877663493,4.404,90.857,90.775,23.6295]
[1645877663690,113.0,90.847,90.751,23.2602]
[1645877663898,26.29863988,90.846,90.751,23.2602]
[1645877664094,1.5712457,90.845,90.751,23.2602]
[1645877664393,1.5712457,90.845,90.727,4.405]
[1645877664394,110.1,90.836,90.727,4.405]
[1645877664596,110.1,90.826,90.7,4.406]
[1645877664793,16.5387,90.79,90.701,38.09286283]
[1645877664993,51.99510159,90.789,90.702,4.407]
[1645877665394,1.79674826,90.788,90.702,4.407]
[1645877665593,4.55528126,90.788,90.701,38.09286283]
[1645877666396,1.79674826,90.788,90.702,110.1]
[1645877666794,1.79674826,90.788,90.701,38.09286283]
[1645877666795,1.79674826,90.788,90.704,110.1]
[1645877666996,1.79674826,90.788,90.705,4.407]
[1645877667195,1.79674826,90.788,90.704,114.507]
[1645877668513,1.79674826,90.788,90.704,4.407]
[1645877669115,4.407,90.787,90.703,22.7345]
[1645877669316,1.66675792,90.779,90.701,38.09286283]
[1645877669719,5.83,90.782,90.701,38.09286283]
[1645877669918,6.24147137,90.781,90.701,38.09286283]
[1645877671317,2.758533,90.78,90.701,38.09286283]
[1645877671527,44.76950155,90.769,90.701,38.09286283]
[1645877671717,5.97741448,90.768,90.701,38.09286283]
[1645877672516,1.56941448,90.768,90.701,38.09286283]
[1645877673117,4.408,90.767,90.701,38.09286283]
[1645877673521,1.45233169,90.759,90.701,38.09286283]
[1645877673719,4.408,90.758,90.701,38.09286283]
[1645877674320,1.45233169,90.759,90.701,38.09286283]
[1645877678926,4.408,90.775,90.702,110.1]
[1645877679140,24.4017,90.776,90.702,110.1]
[1645877679726,24.4017,90.776,90.704,110.1]
[1645877680227,24.4017,90.776,90.703,22.8062]
[1645877681228,24.4017,90.776,90.704,110.1]
[1645877681631,24.4017,90.776,90.703,22.8062]
[1645877685433,24.4017,90.776,90.704,110.1]
[1645877685635,24.4017,90.776,90.703,22.8062]
[1645877685834,24.4017,90.776,90.704,110.1]
[1645877687040,24.4017,90.776,90.703,22.8062]
[1645877687236,16.5414,90.77,90.703,22.8062]
[1645877687440,1.35183219,90.769,90.703,22.8062]
[1645877687634,4.408,90.768,90.703,22.8062]
[1645877687835,1.35183219,90.769,90.703,22.8062]
[1645877688435,16.5437,90.76,90.703,22.8062]
[1645877688634,55.77448228,90.759,90.703,22.8062]
[1645877690639,55.77448228,90.759,90.701,38.09286283]
[1645877691638,16.5445,90.75,90.701,38.09286283]
[1645877693537,1.71936764,90.749,90.701,38.09286283]
[1645877695744,55.77448228,90.759,90.701,38.09286283]
[1645877699253,16.5426,90.77,90.701,38.09286283]
[1645877699554,24.4017,90.776,90.702,24.6118]
[1645877699751,44.6403624,90.807,90.702,24.6118]
[1645877699752,2.758533,90.796,90.703,110.1]
[1645877699951,4.408,90.799,90.704,2.85614218]
[1645877700150,53.8979655,90.798,90.704,2.85614218]
[1645877700353,1.45311284,90.797,90.703,110.1]
[1645877700555,16.5372,90.79,90.705,110.1]
[1645877700754,1.78424875,90.789,90.704,22.6656]
[1645877701152,23.2513,90.788,90.704,22.6656]
[1645877701353,1.61991823,90.787,90.704,22.6656]
[1645877702356,23.2513,90.788,90.705,112.53718026]
[1645877702555,0.25,90.788,90.706,2.60077049]
[1645877703154,22.8728,90.803,90.711,112.89693006]
[1645877703354,22.8728,90.803,90.712,3.09175721]
[1645877703554,22.8728,90.803,90.721,3.03555455]
[1645877703754,22.8728,90.803,90.722,24.6676]
[1645877703955,22.8728,90.803,90.723,110.1]
[1645877704153,22.8728,90.803,90.723,2.81573241]
[1645877704556,22.8728,90.803,90.731,110.1]
[1645877704955,22.8728,90.803,90.732,2.66284668]
[1645877705255,4.406,90.818,90.732,2.66284668]
[1645877705455,50.34988241,90.828,90.732,2.66284668]
[1645877705657,16.5316,90.83,90.741,110.1]
[1645877705856,4.406,90.84,90.742,2.98650845]
[1645877706057,2.758533,90.844,90.742,2.98650845]
[1645877706555,80.40478921,90.831,90.743,34.57179684]
[1645877706755,80.40478921,90.831,90.744,110.1]
[1645877706956,22.0038624,90.83,90.751,110.1]
[1645877707159,45.65361217,90.83,90.751,110.1]
[1645877707358,45.65361217,90.83,90.753,110.1]
[1645877707556,0.25,90.829,90.752,23.922]
[1645877707761,22.0038624,90.829,90.753,110.1]
[1645877708758,23.64974977,90.844,90.762,2.6043313]
[1645877709560,136.396,90.85,90.764,110.1]
[1645877710162,0.25,90.849,90.766,110.1]
[1645877710561,0.25,90.849,90.771,110.1]
[1645877711061,0.25,90.849,90.77,15.91]
[1645877711261,23.64974977,90.848,90.77,15.91]
[1645877711461,45.65361217,90.848,90.77,15.91]
[1645877711660,22.02379741,90.847,90.77,15.91]
[1645877711864,45.67354718,90.847,90.77,15.91]
[1645877712262,22.0038624,90.846,90.77,15.91]
[1645877712466,50.91887563,90.849,90.77,32.4347]
[1645877712662,23.64974977,90.861,90.77,32.4347]
[1645877713063,22.0038624,90.856,90.77,32.4347]
[1645877713464,22.0038624,90.856,90.771,110.1]
[1645877713964,22.0038624,90.856,90.781,110.1]
[1645877714164,23.64974977,90.874,90.791,110.1]
[1645877714364,22.02379741,90.872,90.791,117.57]
[1645877714566,22.02379741,90.872,90.792,2.40881599]
[1645877714866,49.31769843,90.888,90.794,110.1]
[1645877715069,22.0038624,90.89,90.797,2.74926742]
[1645877715266,0.25,90.889,90.812,2.47107404]
[1645877715466,0.25,90.889,90.822,2.46777768]
[1645877715665,22.02379741,90.897,90.822,2.46777768]
[1645877715868,22.02379741,90.897,90.823,2.86292427]
[1645877716068,2.758533,90.911,90.825,110.1]
[1645877716267,2.758533,90.911,90.831,110.1]
[1645877716480,6.03993205,90.91,90.841,110.1]
[1645877716887,6.03993205,90.91,90.841,112.6342471]
[1645877717293,5.65638201,90.91,90.85,15.91]
[1645877717488,5.65638201,90.91,90.851,110.1]
[1645877717694,12.75497233,90.934,90.852,2.76553181]
[1645877717903,4.4,90.976,90.854,115.0]
[1645877718090,4.4,90.976,90.86,198.86]
[1645877718291,20.84377763,91.011,90.871,110.1]
[1645877718486,20.84377763,91.011,90.881,110.1]
[1645877718487,1.61765878,91.01,90.881,110.1]
[1645877718701,6.01565878,91.01,90.91,16.4955]
[1645877718888,20.84377763,91.009,90.91,38.4555]
[1645877719087,20.84377763,91.009,90.911,112.67060426]
[1645877719286,4.397,91.019,90.912,3.09076926]
[1645877719686,43.58781487,91.018,90.913,110.1]
[1645877719888,43.58781487,91.018,90.914,2.9384136]
[1645877720289,43.58781487,91.018,90.92,54.9809]
[1645877720486,16.4982,91.01,90.93,15.91]
[1645877720688,1.62031412,91.009,90.93,15.91]
[1645877720888,4.397,91.008,90.91,15.91]
[1645877721090,17.40686973,91.008,90.92,15.91]
[1645877721285,6.02301181,91.007,90.91,15.91]
[1645877721487,49.56528404,91.007,90.91,15.91]
[1645877721788,1.72245412,91.005,90.91,15.91]
[1645877721987,16.5002,91.0,90.91,15.91]
[1645877722186,58.90291652,90.999,90.91,15.91]
[1645877722387,1.5520783,90.998,90.91,15.91]
[1645877722586,4.397,90.997,90.91,15.91]
[1645877722889,4.397,90.997,90.89,16.5006]
[1645877722890,8.55695613,90.997,90.89,15.91]
[1645877723087,1.77634952,90.989,90.88,15.91]
[1645877723286,4.398,90.988,90.88,15.91]
[1645877723686,1.86784898,90.987,90.88,15.91]
[1645877723888,4.398,90.986,90.881,2.86292427]
[1645877724086,16.5037,90.98,90.881,2.86292427]
[1645877724291,1.72063504,90.979,90.88,15.91]
[1645877724685,6.08297988,90.984,90.88,15.91]
[1645877725086,16.5053,90.97,90.88,15.91]
[1645877725288,58.7298288,90.968,90.873,46.5668]
[1645877725490,5.63572087,90.967,90.873,46.5668]
[1645877726188,1.40655677,90.967,90.873,49.42972427]
[1645877726789,6.80655677,90.967,90.873,46.5668]
[1645877726988,5.28617457,90.966,90.873,46.5668]
[1645877727188,1.46045566,90.965,90.844,2.59572794]
[1645877727387,1.80027556,90.959,90.84,15.91]
[1645877727988,28.8248946,90.958,90.84,15.91]
[1645877728190,1.7464171,90.957,90.84,15.91]
[1645877728392,70.63,90.956,90.84,15.91]
[1645877728688,70.63,90.956,90.835,49.1569]
[1645877728689,59.56265142,90.929,90.835,49.1569]
[1645877728888,5.98631337,90.928,90.835,49.1569]
[1645877729289,68.98123369,90.927,90.808,16.7426]
[1645877729588,48.6937867,90.909,90.81,15.91]
[1645877729789,1.84775798,90.908,90.811,110.1]
[1645877729990,4.402,90.907,90.81,15.91]
[1645877730191,23.4397878,90.907,90.81,15.91]
[1645877730389,1.39694277,90.906,90.81,15.91]
[1645877730590,1.39694277,90.906,90.811,2.86292427]
[1645877730989,4.402,90.905,90.811,2.86292427]
[1645877731392,1.39694277,90.906,90.811,2.86292427]
[1645877731602,1.48704591,90.899,90.811,2.86292427]
[1645877731997,4.402,90.898,90.811,2.86292427]
[1645877732199,5.88904591,90.899,90.811,2.86292427]
[1645877732397,1.48704591,90.899,90.811,2.86292427]
[1645877732597,1.48704591,90.899,90.81,15.91]
[1645877732799,16.5195,90.89,90.81,15.91]
[1645877732997,51.46360378,90.889,90.81,15.91]
[1645877734596,51.46360378,90.889,90.811,110.1]
[1645877734799,51.46360378,90.889,90.81,15.91]
[1645877734997,16.5211,90.88,90.801,2.86292427]
[1645877735199,16.5211,90.88,90.759,25.99905308]
[1645877735200,5.81469121,90.879,90.777,2.86292427]
[1645877735396,66.23,90.878,90.758,2.86292427]
[1645877735597,165.1624249,90.879,90.758,2.86292427]
[1645877735598,66.23,90.876,90.758,2.86292427]
[1645877735797,52.74699526,90.874,90.758,2.86292427]
[1645877736000,5.87254182,90.873,90.758,2.86292427]
[1645877736198,1.46854182,90.873,90.771,110.1]
[1645877736398,1.46854182,90.873,90.773,110.1]
[1645877736603,1.46854182,90.873,90.772,48.50517824]
[1645877737003,1.56437842,90.869,90.774,2.86292427]
[1645877737205,15.91,90.86,90.759,24.7183]
[1645877737400,62.04887788,90.858,90.759,24.7183]
[1645877737601,5.9104757,90.857,90.741,22.654]
[1645877738002,16.5335,90.84,90.741,22.654]
[1645877738200,51.34042429,90.839,90.741,22.654]
[1645877738400,6.03163697,90.838,90.741,22.654]
[1645877738605,8.78287066,90.838,90.741,22.654]
[1645877738799,8.78287066,90.838,90.742,2.86292427]
[1645877739002,6.03163697,90.838,90.742,2.86292427]
[1645877739204,2.75123369,90.837,90.742,112.96292427]
[1645877739403,4.405,90.836,90.742,112.96292427]
[1645877739605,4.405,90.836,90.743,2.86292427]
[1645877739802,2.75123369,90.835,90.743,2.86292427]
[1645877740003,9.16123369,90.835,90.741,22.654]
[1645877740204,4.405,90.834,90.741,22.654]
[1645877740403,55.27385627,90.819,90.741,22.654]
[1645877740603,1.64441522,90.818,90.741,22.654]
[1645877741402,1.64441522,90.818,90.722,24.8478]
[1645877741603,16.5341,90.81,90.722,24.8478]
[1645877741806,1.53668627,90.809,90.722,24.8478]
[1645877742407,6.15034694,90.818,90.722,24.8478]
[1645877743404,16.5354,90.8,90.722,24.8478]
[1645877743606,56.2196935,90.799,90.717,19.67742427]
[1645877743808,54.63517684,90.799,90.723,2.86292427]
[1645877744007,49.2182,90.817,90.723,2.86292427]
[1645877744605,1.42587551,90.832,90.723,2.86292427]
[1645877744807,2.75123369,90.833,90.725,110.1]
[1645877745007,52.4582941,90.831,90.726,2.60447854]
[1645877745208,52.4582941,90.831,90.731,112.98942946]
[1645877745405,52.4582941,90.831,90.732,2.86741658]
[1645877745607,16.5335,90.82,90.732,2.86741658]
[1645877745807,16.5335,90.82,90.733,110.1]
[1645877746008,16.5335,90.82,90.733,112.96292427]
[1645877746206,16.5335,90.82,90.734,2.86292427]
[1645877746614,1.75370279,90.819,90.734,2.86292427]
[1645877746811,16.5344,90.81,90.734,2.86292427]
[1645877747011,57.79808132,90.809,90.73,15.91]
[1645877747208,5.99466374,90.808,90.714,2.86292427]
[1645877747412,55.1334,90.8,90.691,110.1]
[1645877747610,6.11425944,90.799,90.702,23.566]
[1645877748516,16.54,90.78,90.702,23.566]
[1645877748714,42.93442969,90.779,90.702,23.566]
[1645877749213,1.62768177,90.778,90.702,23.566]
[1645877750524,16.5412,90.77,90.702,23.566]
[1645877750721,1.8510544,90.769,90.702,23.566]
[1645877751321,42.93442969,90.779,90.703,112.96292427]
[1645877751525,1.459898,90.799,90.704,2.41102491]
[1645877751725,1.459898,90.799,90.71,15.91]
[1645877751924,1.459898,90.799,90.711,110.1]
[1645877752324,4.407,90.806,90.711,112.96292427]
[1645877752325,6.09369406,90.806,90.711,112.96292427]
[1645877752524,49.11855406,90.798,90.712,2.86292427]
[1645877752726,1.69346367,90.797,90.712,2.86292427]
[1645877752928,1.69346367,90.797,90.714,110.1]
[1645877753328,1.69346367,90.797,90.715,2.86292427]
[1645877754130,4.407,90.796,90.715,2.86292427]
[1645877754327,4.407,90.796,90.713,23.493]
[1645877754729,16.5378,90.79,90.713,23.493]
[1645877754929,6.20271561,90.789,90.713,23.493]
[1645877755132,6.20271561,90.789,90.697,2.86292427]
[1645877755133,13.067,90.789,90.697,2.86292427]
[1645877755328,1.82487586,90.787,90.688,24.5552]
[1645877755729,4.408,90.786,90.689,2.86292427]
[1645877755932,1.62322467,90.779,90.689,2.86292427]
[1645877756134,4.408,90.787,90.691,112.77998834]
[1645877756330,24.1525,90.788,90.691,112.77998834]
[1645877756531,24.1525,90.788,90.693,110.1]
[1645877756734,24.1525,90.788,90.694,2.43857709]
[1645877756938,50.3018506,90.787,90.7,16.5365]
[1645877757135,48.86133132,90.787,90.7,16.5365]
[1645877757532,50.40763166,90.787,90.701,2.86292427]
[1645877757735,1.57851667,90.786,90.688,24.5552]
[1645877757944,16.5393,90.78,90.688,24.5552]
[1645877758145,1.59845923,90.779,90.688,24.5552]
[1645877758442,1.59845923,90.779,90.67,15.91]
[1645877758443,1.36110897,90.778,90.67,15.91]
[1645877758741,1.58279129,90.776,90.671,110.1]
[1645877758944,4.408,90.775,90.671,110.1]
[1645877759144,4.408,90.775,90.671,112.52936611]
[1645877759347,16.5444,90.76,90.673,110.1]
[1645877759545,55.12627723,90.759,90.673,110.1]
[1645877759744,55.12627723,90.759,90.672,24.1927]
[1645877759948,1.60306199,90.758,90.672,24.1927]
[1645877760346,55.12627723,90.759,90.672,24.1927]
[1645877760546,55.12627723,90.759,90.672,26.97236268]
[1645877760747,1.40561033,90.749,90.672,24.1927]
[1645877761954,16.5469,90.74,90.672,24.1927]
[1645877762149,56.9447139,90.739,90.672,24.1927]
[1645877763951,1.69626304,90.738,90.65,35.31862427]
[1645877764151,16.5483,90.73,90.64,15.91]
[1645877764350,1.80705402,90.729,90.64,2.86292427]
[1645877764553,1.80705402,90.729,90.632,23.5786]
[1645877764753,2.74535735,90.729,90.632,23.5786]
[1645877764953,2.74535735,90.728,90.632,23.5786]
[1645877765351,16.5536,90.71,90.632,23.5786]
[1645877765556,16.5536,90.71,90.6,15.91]
[1645877765557,52.58156323,90.709,90.6,15.91]
[1645877765755,116.02721488,90.708,90.581,2.74071635]
[1645877765956,1.65462807,90.707,90.592,2.86292427]
[1645877766155,70.642,90.706,90.592,2.86292427]
[1645877766353,1.82718957,90.705,90.58,18.77292427]
[1645877766554,4.412,90.704,90.58,18.77292427]
[1645877766755,110.1,90.703,90.58,15.91]
[1645877766957,176.33,90.699,90.58,15.91]
[1645877767156,66.23,90.697,90.58,15.91]
[1645877767354,110.1,90.694,90.58,15.91]
[1645877767554,16.5587,90.68,90.58,32.4681]
[1645877767754,48.42882786,90.679,90.58,32.4681]
[1645877767954,1.59205521,90.678,90.58,32.4681]
[1645877768354,4.413,90.677,90.58,15.91]
[1645877768556,6.04141271,90.677,90.58,15.91]
[1645877768756,1.604283,90.669,90.58,15.91]
[1645877769355,1.78189562,90.678,90.58,15.91]
[1645877769659,110.1,90.659,90.537,3.04018249]
[1645877769856,66.23,90.655,90.531,45.6166]
[1645877770058,66.23,90.647,90.531,45.6166]
[1645877770260,66.23,90.645,90.531,45.6166]
[1645877770454,60.18653995,90.644,90.531,45.6166]
[1645877770661,16.5675,90.63,90.54,16.5671]
[1645877770860,56.84833306,90.629,90.54,32.4771]
[1645877771858,16.5682,90.62,90.54,15.91]
[1645877773559,1.3793489,90.619,90.54,15.91]
[1645877773761,16.5708,90.61,90.531,45.6166]
[1645877773961,55.49131891,90.609,90.531,45.6166]
[1645877774159,1.37988299,90.608,90.531,45.6166]
[1645877775359,1.37988299,90.608,90.52,16.5707]
[1645877775566,16.572,90.6,90.517,24.614]
[1645877775760,1.38073022,90.599,90.502,47.0431]
[1645877776161,1.78785615,90.608,90.502,47.0431]
[1645877776670,4.417,90.607,90.502,47.0431]
[1645877777068,1.42256188,90.606,90.502,47.0431]
[1645877777265,4.417,90.605,90.502,47.0431]
[1645877777462,16.5757,90.58,90.502,47.0431]
[1645877777664,54.7036675,90.579,90.502,47.0431]
[1645877778267,4.417,90.605,90.503,2.32568778]
[1645877778466,4.417,90.605,90.503,5.18861205]
[1645877778671,1.47896193,90.611,90.504,2.86292427]
[1645877779269,46.6456737,90.61,90.504,2.86292427]
[1645877779468,16.5729,90.6,90.51,16.5724]
[1645877779872,16.5729,90.6,90.511,2.86292427]
[1645877780872,16.5729,90.6,90.511,5.44173232]
[1645877781871,16.5729,90.6,90.511,2.57880805]
[1645877782473,16.5729,90.6,90.512,2.86292427]
[1645877782670,16.5729,90.6,90.513,23.8359]
[1645877783071,16.5729,90.6,90.514,2.86292427]
[1645877783476,16.5701,90.61,90.52,16.571]
[1645877783671,4.416,90.624,90.53,15.91]
[1645877783872,49.0295,90.637,90.532,2.46038108]
[1645877784277,49.0295,90.637,90.532,16.06023315]
[1645877784472,42.97015361,90.636,90.533,5.58786905]
[1645877784871,0.25,90.635,90.534,2.86292427]
[1645877785473,16.5667,90.63,90.55,16.5655]
[1645877785671,16.5667,90.63,90.551,24.2666]
[1645877788273,1.52243295,90.629,90.551,24.2666]
[1645877788477,16.5712,90.61,90.551,24.2666]
[1645877788673,52.71649984,90.609,90.53,16.5685]
[1645877789275,52.71649984,90.609,90.532,4.416]
[1645877789674,52.71649984,90.609,90.523,2.86292427]
[1645877789875,16.572,90.6,90.523,2.86292427]
[1645877790474,1.62264256,90.599,90.523,2.86292427]
[1645877790677,1.35719265,90.608,90.523,2.86292427]
[1645877791484,61.60431106,90.589,90.521,24.0231]
[1645877791690,61.60431106,90.589,90.5,15.91]
[1645877791691,1.37655045,90.588,90.5,15.91]
[1645877792091,4.417,90.587,90.495,48.9417]
[1645877792890,1.37655045,90.588,90.495,48.9417]
[1645877793487,16.5776,90.57,90.495,48.9417]
[1645877793688,58.33998963,90.569,90.495,48.9417]
[1645877794690,58.33998963,90.569,90.496,110.1]
[1645877794889,58.33998963,90.569,90.5,16.5752]
[1645877795496,58.33998963,90.569,90.501,110.1]
[1645877795691,22.6679,90.589,90.501,110.1]
[1645877795990,1.48860657,90.625,90.51,16.5722]
[1645877796193,2.74535735,90.622,90.52,15.91]
[1645877796392,4.416,90.624,90.53,15.91]
[1645877796593,52.22574456,90.623,90.53,15.91]
[1645877796792,1.85618268,90.622,90.53,15.91]
[1645877797393,0.25,90.621,90.53,15.91]
[1645877797596,16.5682,90.62,90.53,32.4793]
[1645877797793,16.5682,90.62,90.531,110.1]
[1645877797995,16.5682,90.62,90.53,32.4793]
[1645877799208,0.25,90.619,90.53,32.4793]
[1645877799410,0.25,90.619,90.531,110.1]
[1645877799608,0.25,90.619,90.53,32.4793]
[1645877799908,0.25,90.619,90.531,113.07273236]
[1645877800208,0.25,90.619,90.55,16.5662]
[1645877801614,0.25,90.619,90.57,16.5621]
[1645877801812,0.25,90.619,90.57,32.4721]
[1645877802013,0.25,90.619,90.571,110.1]
[1645877802217,0.25,90.619,90.571,2.86292427]
[1645877802413,0.25,90.619,90.57,15.91]
[1645877802615,0.25,90.619,90.55,15.91]
[1645877802814,0.25,90.619,90.54,15.91]
[1645877803416,5.62,90.619,90.54,15.91]
[1645877803615,5.62,90.619,90.53,16.5686]
[1645877803816,16.5703,90.61,90.53,32.4786]
[1645877804016,48.73188906,90.609,90.53,32.4786]
[1645877804819,48.73188906,90.609,90.531,4.416]
[1645877805318,48.73188906,90.609,90.53,32.4786]
[1645877805517,48.73188906,90.609,90.54,16.5685]
[1645877807421,48.73188906,90.609,90.54,19.43142427]
[1645877807619,48.73188906,90.609,90.54,16.5685]
[1645877808421,48.73188906,90.609,90.53,32.4806]
[1645877808621,48.73188906,90.609,90.53,16.5706]
[1645877809821,16.572,90.6,90.526,4.416]
[1645877810019,1.41155408,90.599,90.526,4.416]
[1645877810820,16.572,90.6,90.526,4.416]
[1645877812225,1.57944622,90.608,90.53,16.5702]
[1645877814327,48.73188906,90.609,90.53,32.4802]
[1645877815528,16.5705,90.61,90.53,32.4802]
[1645877815728,4.416,90.643,90.535,115.35807931]
[1645877815934,16.5682,90.63,90.54,16.5686]
[1645877816135,16.5682,90.63,90.542,2.57869944]
[1645877816328,1.73279453,90.655,90.542,2.57869944]
[1645877816529,46.35122337,90.654,90.542,2.57869944]
[1645877816730,46.35122337,90.654,90.543,112.96292427]
[1645877816930,46.35122337,90.654,90.544,2.87047661]
[1645877817132,46.35122337,90.654,90.545,110.1]
[1645877817330,1.66509747,90.653,90.56,15.91]
[1645877817531,16.5644,90.65,90.56,32.4751]
[1645877817731,0.25,90.649,90.56,32.4751]
[1645877819232,16.565,90.64,90.56,15.91]
[1645877819434,51.9799323,90.639,90.56,15.91]
[1645877819631,51.9799323,90.639,90.552,24.4259]
[1645877819632,1.39026914,90.638,90.552,24.4259]
[1645877819831,4.415,90.637,90.552,24.4259]
[1645877820033,1.63557607,90.637,90.53,15.91]
[1645877820231,47.6392598,90.636,90.53,15.91]
[1645877820433,1.49904229,90.635,90.53,15.91]
[1645877820631,4.415,90.634,90.53,15.91]
[1645877820832,5.81032253,90.634,90.53,15.91]
[1645877821031,1.62022688,90.633,90.53,15.91]
[1645877821233,4.415,90.632,90.53,15.91]
[1645877821439,16.5688,90.62,90.53,15.91]
[1645877821642,57.60917614,90.619,90.53,15.91]
[1645877822041,1.6173942,90.618,90.53,15.91]
[1645877822636,4.416,90.617,90.53,15.91]
[1645877823438,16.5708,90.61,90.53,15.91]
[1645877823635,1.46574401,90.609,90.53,15.91]
[1645877824039,1.64413458,90.616,90.53,15.91]
[1645877824238,4.416,90.615,90.53,15.91]
[1645877824437,75.13549471,90.615,90.53,15.91]
[1645877824638,58.3231954,90.599,90.53,15.91]
[1645877824840,1.46836604,90.598,90.53,15.91]
[1645877825138,1.46836604,90.598,90.522,24.6342]
[1645877826544,16.5739,90.59,90.522,24.6342]
[1645877826944,1.46836604,90.598,90.522,24.6342]
[1645877826945,1.46836604,90.598,90.527,2.86292427]
[1645877827140,1.46836604,90.598,90.522,24.6342]
[1645877828443,16.574,90.59,90.522,24.6342]
[1645877832652,1.61911103,90.589,90.522,24.6342]
[1645877833264,1.61911103,90.589,90.51,16.5743]
[1645877833465,1.61911103,90.589,90.52,16.5723]
[1645877834868,56.93524616,90.599,90.51,15.91]
[1645877835166,4.416,90.627,90.54,15.91]
[1645877835366,16.6697,90.672,90.541,48.5817]
[1645877835367,24.36475226,90.636,90.541,48.5817]